bitfinex-derivatives/quotes_SOLF0:USTF0_20241218
["timestamp","ask_amount","ask_price","bid_price","bid_amount"]
[1734546939584,6.40087494,217.02,216.94,6.40087494]
[1734546939788,6.40087494,217.02,216.94,8.60087494]
[1734546939983,2.3043,217.0,216.95,2.3047]
[1734546940887,2.3042,217.01,216.96,2.3046]
[1734546941278,2.3043,217.0,216.95,2.3047]
[1734546945090,10.0164433,216.99,216.86,10.0164433]
[1734546945282,1.518,216.98,216.87,2.2]
[1734546945486,3.039,216.98,216.88,2.2]
[1734546945687,2.3047,216.96,216.9,2.3052]
[1734546947390,2.3047,216.96,216.91,2.3052]
[1734546948593,3.039,216.98,216.89,2.2]
[1734546949092,5.3434,216.98,216.92,2.305]
[1734546949899,3.039,216.98,216.88,5.44714997]
[1734546951294,3.039,216.98,216.86,10.0164433]
[1734546951495,3.039,216.98,216.86,2.2]
[1734546952194,3.039,216.98,216.88,2.3054]
[1734546952590,2.305,216.93,216.88,2.3054]
[1734546952795,2.2,216.96,216.88,2.3054]
[1734546953196,2.2,216.96,216.86,2.2]
[1734546953395,2.305,216.93,216.89,2.3054]
[1734546954601,2.3052,216.91,216.87,2.3055]
[1734546954800,2.2,216.9,216.65,4.6158]
[1734546954999,10.0164433,216.86,216.7,10.0164433]
[1734546955201,10.0164433,216.86,216.71,2.2]
[1734546955501,10.0164433,216.86,216.7,10.0164433]
[1734546955502,2.3064,216.8,216.74,2.307]
[1734546957197,2.3066,216.78,216.72,4.5071]
[1734546957404,12.2164433,216.83,216.71,2.2]
[1734546957802,2.3067,216.77,216.71,2.2]
[1734546958600,2.3066,216.79,216.71,2.2]
[1734546959198,2.3064,216.8,216.73,2.3071]
[1734546959403,12.2164433,216.83,216.73,2.3071]
[1734546960111,2.3065,216.79,216.73,2.3071]
[1734546962001,1.5725,216.81,216.71,2.2]
[1734546962902,1.5725,216.81,216.77,2.3066]
[1734546964108,1.5725,216.81,216.71,2.2]
[1734546964910,13.8266433,216.8,216.69,5.57135271]
[1734546965906,13.8266433,216.8,216.68,2.22]
[1734546966104,1.5471,216.79,216.68,2.22]
[1734546966303,2.3069,216.75,216.69,2.3074]
[1734546966502,1.5471,216.79,216.68,2.22]
[1734546966905,3.7471,216.79,216.68,7.64605324]
[1734546967105,1.5471,216.79,216.68,7.64605324]
[1734546967306,3.7471,216.79,216.68,7.64605324]
[1734546968412,2.3068,216.76,216.71,2.3073]
[1734546970611,2.3069,216.75,216.7,2.3074]
[1734546970802,3.7471,216.79,216.67,2.2]
[1734546971312,10.0164433,216.77,216.69,2.3075]
[1734546971503,10.0164433,216.77,216.67,2.2]
[1734546971911,2.307,216.75,216.7,2.3074]
[1734546972414,10.0164433,216.77,216.66,2.2]
[1734546972614,10.0164433,216.77,216.65,2.2]
[1734546972816,2.3073,216.72,216.67,2.3077]
[1734546973012,1.4794,216.71,216.62,0.335]
[1734546973213,11.4958433,216.71,216.62,2.535]
[1734546973407,2.3078,216.67,216.62,2.6432]
[1734546974209,13.0525433,216.71,216.62,2.6432]
[1734546974415,2.3076,216.68,216.63,2.3081]
[1734546974716,13.0525433,216.71,216.62,0.335]
[1734546975214,13.0525433,216.71,216.6,2.2]
[1734546976613,2.3076,216.68,216.63,2.3081]
[1734546978117,6.43043403,216.67,216.63,2.3081]
[1734546978612,6.43043403,216.67,216.6,2.2]
[1734546979015,6.43043403,216.65,216.6,2.2]
[1734546979213,6.43043403,216.65,216.62,2.3082]
[1734546979718,1.5127,216.69,216.65,2.3079]
[1734546980019,6.43043403,216.67,216.65,2.3079]
[1734546981116,6.43043403,216.67,216.6,2.2]
[1734546981310,6.43043403,216.67,216.64,2.308]
[1734546982015,6.43043403,216.67,216.62,2.3082]
[1734546982319,6.43043403,216.67,216.6,2.2]
[1734546982720,8.73823403,216.67,216.62,2.3082]
[1734546982922,6.43043403,216.63,216.53,0.42078]
[1734546983120,6.43043403,216.61,216.58,2.3087]
[1734546983318,6.43043403,216.61,216.54,2.22]
[1734546983917,6.43043403,216.61,216.54,7.71399593]
[1734546984221,1.4948,216.63,216.53,2.64078]
[1734546984923,1.4948,216.63,216.61,2.3084]
[1734546985322,1.4948,216.63,216.53,2.64078]
[1734546985519,1.4948,216.63,216.59,2.3085]
[1734546987521,1.4948,216.63,216.53,2.64078]
[1734546987522,1.4948,216.63,216.58,2.22]
[1734546987723,11.63858843,216.68,216.58,2.22]
[1734546987924,1.5866,216.68,216.58,2.22]
[1734546988627,2.3078,216.67,216.62,2.3082]
[1734546990527,2.3078,216.67,216.63,2.3081]
[1734546990917,2.3078,216.66,216.63,2.3081]
[1734546991718,1.5866,216.68,216.63,2.3081]
[1734546991924,1.5866,216.68,216.61,2.3083]
[1734546993025,1.5866,216.68,216.58,2.22]
[1734546993725,1.5866,216.68,216.61,2.3083]
[1734546994028,11.16440377,216.67,216.58,2.22]
[1734546994625,2.3081,216.64,216.59,2.3085]
[1734546994825,2.3081,216.64,216.58,2.22]
[1734546995525,11.16440377,216.67,216.6,2.3084]
[1734546995825,2.308,216.65,216.58,2.22]
[1734546996125,2.308,216.65,216.6,2.3084]
[1734546997526,2.308,216.65,216.58,2.22]
[1734546997527,2.3077,216.67,216.63,2.3081]
[1734546998427,1.5866,216.68,216.58,2.22]
[1734546998919,1.5866,216.68,216.66,2.3077]
[1734546999120,1.5866,216.68,216.58,13.38440377]
[1734547000229,2.3072,216.72,216.61,11.16440377]
[1734547000425,12.68021463,216.74,216.61,11.16440377]
[1734547000632,11.20251463,216.73,216.69,2.3074]
[1734547000829,1.4777,216.74,216.69,2.3074]
[1734547001025,1.4777,216.74,216.68,2.3076]
[1734547001429,1.4777,216.74,216.66,2.22]
[1734547001430,3.7847,216.74,216.66,2.22]
[1734547001634,3.7847,216.74,216.69,2.3074]
[1734547001635,14.99067192,216.74,216.69,2.3074]
[1734547001829,11.20597192,216.73,216.69,2.3074]
[1734547002127,3.7847,216.74,216.69,2.3074]
[1734547002731,2.3071,216.73,216.69,2.3074]
[1734547002924,1.4777,216.74,216.66,2.22]
[1734547003533,1.4777,216.74,216.72,2.3071]
[1734547004234,1.4777,216.74,216.71,2.3073]
[1734547004532,7.13850404,216.73,216.71,2.3073]
[1734547004923,1.4777,216.74,216.71,2.3073]
[1734547005133,7.13850404,216.73,216.69,2.3074]
[1734547005530,9.44560404,216.73,216.66,2.22]
[1734547005828,7.13850404,216.73,216.68,2.3076]
[1734547006534,9.44560404,216.73,216.68,2.3076]
[1734547007236,7.13850404,216.71,216.66,2.22]
[1734547007435,7.13850404,216.69,216.66,2.22]
[1734547007635,7.13850404,216.69,216.63,7.84130087]
[1734547008232,7.13850404,216.69,216.66,2.3078]
[1734547010137,9.44600404,216.69,216.54,1.5156]
[1734547010339,7.13850404,216.69,216.61,7.13850404]
[1734547010538,7.13850404,216.67,216.61,2.2]
[1734547010742,2.3079,216.66,216.61,4.5083]
[1734547011337,2.3079,216.66,216.62,2.3082]
[1734547012139,9.44620404,216.67,216.62,2.3082]
[1734547012439,7.13850404,216.69,216.64,2.308]
[1734547013238,9.44600404,216.69,216.64,2.308]
[1734547013944,9.44600404,216.69,216.65,2.3079]
[1734547015038,2.3077,216.67,216.63,2.3081]
[1734547015241,7.13850404,216.65,216.61,2.2]
[1734547015446,7.13850404,216.65,216.54,1.5156]
[1734547015634,7.13850404,216.65,216.53,41.26110731]
[1734547015635,9.44670404,216.63,216.55,9.33850404]
[1734547015840,7.13850404,216.63,216.55,2.2]
[1734547016041,7.13850404,216.59,216.53,0.42078]
[1734547016246,9.44710404,216.59,216.53,2.72998]
[1734547017137,2.3087,216.58,216.53,0.42078]
[1734547018246,2.3088,216.57,216.53,0.42078]
[1734547018746,13.37330907,216.61,216.53,0.42078]
[1734547018947,2.3089,216.56,216.53,0.42078]
[1734547019149,1.4757,216.6,216.53,0.42078]
[1734547019346,11.17330907,216.58,216.53,0.42078]
[1734547019543,1.4757,216.6,216.33,4.6226]
[1734547019544,11.17330907,216.55,216.37,1.5338]
[1734547019848,11.17330907,216.55,216.39,11.17330907]
[1734547020047,2.3095,216.5,216.44,2.3101]
[1734547020348,1.4808,216.54,216.43,2.22]
[1734547020648,2.3095,216.51,216.45,2.3101]
[1734547021043,2.3093,216.52,216.45,2.3101]
[1734547021547,2.3093,216.52,216.46,2.3099]
[1734547022148,2.3096,216.5,216.44,2.3101]
[1734547025151,2.3094,216.52,216.46,2.3099]
[1734547025452,1.4808,216.54,216.43,13.39330907]
[1734547025647,1.5535,216.57,216.43,13.39330907]
[1734547025951,3.8623,216.57,216.46,11.17330907]
[1734547026343,3.8623,216.57,216.51,2.3093]
[1734547026542,3.8623,216.57,216.5,2.2]
[1734547027652,3.8623,216.57,216.52,2.3093]
[1734547028052,1.5535,216.57,216.53,2.3092]
[1734547029749,1.5535,216.57,216.5,2.2]
[1734547029950,1.4757,216.6,216.5,2.2]
[1734547030550,1.4757,216.6,216.56,2.3089]
[1734547033350,1.4757,216.6,216.55,2.2]
[1734547033351,2.2,216.63,216.57,2.3087]
[1734547033749,11.17330907,216.61,216.52,2.2]
[1734547033949,1.4571,216.6,216.52,2.2]
[1734547034150,1.4571,216.6,216.52,4.5093]
[1734547034346,1.4571,216.6,216.47,1.4531]
[1734547034648,11.17330907,216.58,216.48,2.2]
[1734547034955,2.3089,216.56,216.5,2.3094]
[1734547035850,2.3089,216.56,216.51,2.3094]
[1734547037258,2.3088,216.57,216.51,2.3094]
[1734547040060,7.15191625,216.56,216.51,2.3094]
[1734547040353,7.15191625,216.56,216.49,7.67968858]
[1734547040354,2.309,216.55,216.5,2.3095]
[1734547040558,7.15191625,216.54,216.49,2.2]
[1734547040758,8.63921625,216.54,216.46,9.37191625]
[1734547041661,8.63921625,216.54,216.46,7.15191625]
[1734547041863,8.63921625,216.54,216.46,9.37191625]
[1734547042053,2.3092,216.53,216.48,2.3097]
[1734547043263,11.17870912,216.53,216.44,2.22]
[1734547043562,1.4692,216.52,216.43,2.22]
[1734547044265,2.3097,216.49,216.44,2.3101]
[1734547045162,2.3095,216.51,216.46,2.31]
[1734547045365,1.4692,216.52,216.42,7.71729653]
[1734547046462,1.4692,216.52,216.42,5.49729653]
[1734547046661,1.4692,216.52,216.43,2.22]
[1734547047562,3.7786,216.52,216.46,2.3099]
[1734547047867,3.7786,216.52,216.43,2.22]
[1734547048067,3.7786,216.52,216.45,2.31]
[1734547048265,3.7786,216.52,216.43,2.22]
[1734547049766,12.64955101,216.52,216.42,2.22]
[1734547049969,2.22,216.51,216.41,2.22]
[1734547050166,2.22,216.51,216.43,2.3102]
[1734547050369,2.22,216.51,216.41,7.88536939]
[1734547050570,12.64955101,216.52,216.41,7.88536939]
[1734547050765,1.4692,216.52,216.41,7.88536939]
[1734547050962,2.3094,216.51,216.41,7.88536939]
[1734547051163,1.4692,216.52,216.41,7.88536939]
[1734547051370,12.64955101,216.52,216.41,7.88536939]
[1734547051769,2.3098,216.48,216.43,2.3102]
[1734547052371,2.3096,216.5,216.44,2.3101]
[1734547052771,12.64955101,216.52,216.44,2.3101]
[1734547053272,2.3098,216.48,216.44,2.3101]
[1734547053471,2.3098,216.48,216.43,2.3102]
[1734547053773,12.64955101,216.52,216.41,2.22]
[1734547053972,2.3099,216.47,216.42,2.3103]
[1734547055764,11.18423013,216.51,216.36,11.18423013]
[1734547056065,1.5618,216.46,216.37,2.2]
[1734547057476,2.3101,216.45,216.4,2.3106]
[1734547059077,2.3103,216.43,216.39,2.3107]
[1734547061171,1.5618,216.46,216.39,2.3107]
[1734547061469,2.3102,216.44,216.39,2.3107]
[1734547061878,2.3103,216.43,216.39,2.3107]
[1734547062273,2.3103,216.43,216.38,2.3108]
[1734547063375,2.3103,216.43,216.36,2.2]
[1734547063674,2.3103,216.43,216.39,2.3107]
[1734547064071,9.4707986,216.43,216.39,2.3107]
[1734547065078,7.1604986,216.43,216.36,9.3604986]
[1734547065282,9.4709986,216.41,216.36,2.2]
[1734547065581,9.4709986,216.41,216.34,7.1604986]
[1734547066176,9.4709986,216.41,216.36,2.3109]
[1734547067780,7.1604986,216.41,216.37,2.3109]
[1734547068580,7.1604986,216.43,216.38,2.3108]
[1734547068789,7.1604986,216.45,216.34,5.57895709]
[1734547069085,7.1604986,216.45,216.36,7.1604986]
[1734547070478,2.3103,216.43,216.38,2.3107]
[1734547071186,9.4705986,216.45,216.4,2.3105]
[1734547071378,9.4705986,216.45,216.34,5.57895709]
[1734547071379,3.7618,216.46,216.38,7.1604986]
[1734547071580,10.9222986,216.46,216.38,9.3604986]
[1734547071875,1.5618,216.46,216.4,7.1604986]
[1734547072387,7.1604986,216.51,216.42,7.1604986]
[1734547072775,7.1604986,216.51,216.46,2.3099]
[1734547072977,7.1604986,216.51,216.43,2.22]
[1734547073782,7.1604986,216.51,216.44,7.1604986]
[1734547075480,7.1604986,216.51,216.47,2.3098]
[1734547080085,7.1604986,216.51,216.48,2.3097]
[1734547080391,1.4687,216.54,216.48,2.2]
[1734547080986,1.4687,216.54,216.49,2.3096]
[1734547081189,1.4687,216.54,216.48,2.2]
[1734547081492,8.6291986,216.54,216.48,2.2]
[1734547081692,8.6291986,216.54,216.5,2.3094]
[1734547081895,8.6291986,216.54,216.48,2.2]
[1734547082794,1.4687,216.54,216.48,9.3604986]
[1734547082995,1.4687,216.54,216.52,2.3093]
[1734547085791,1.5549,216.59,216.52,7.1604986]
[1734547085990,1.5549,216.59,216.53,2.2]
[1734547086194,10.9247986,216.61,216.57,2.3088]
[1734547086690,8.6163986,216.61,216.58,2.3087]
[1734547086897,7.1604986,216.61,216.54,7.1604986]
[1734547087690,8.7148986,216.63,216.54,7.1604986]
[1734547088186,19.93194608,216.63,216.54,7.1604986]
[1734547088388,8.7148986,216.63,216.54,7.1604986]
[1734547088587,2.3083,216.62,216.57,2.3087]
[1734547088787,7.1604986,216.61,216.53,2.2]
[1734547088997,7.1604986,216.61,216.53,9.3604986]
[1734547090995,7.1604986,216.59,216.51,7.1604986]
[1734547091200,7.1604986,216.55,216.48,7.1604986]
[1734547091402,7.1604986,216.55,216.49,2.2]
[1734547091899,9.4694986,216.55,216.49,4.5095]
[1734547092400,9.4694986,216.55,216.5,2.3095]
[1734547092602,7.1604986,216.55,216.5,2.3095]
[1734547093499,9.4694986,216.55,216.5,2.3095]
[1734547094207,7.1604986,216.57,216.5,7.1604986]
[1734547094404,3.719,216.58,216.5,7.1604986]
[1734547094606,1.519,216.58,216.5,7.1604986]
[1734547094800,2.3089,216.57,216.52,2.3093]
[1734547095506,1.519,216.58,216.54,2.309]
[1734547096306,3.8277,216.58,216.54,2.309]
[1734547096702,2.3088,216.57,216.53,2.3092]
[1734547100009,7.1604986,216.56,216.48,7.1604986]
[1734547100310,7.1604986,216.56,216.49,2.2]
[1734547100506,2.309,216.55,216.5,2.3095]
[1734547100802,7.1604986,216.56,216.5,2.3095]
[1734547101208,2.309,216.55,216.5,2.3095]
[1734547101503,7.1604986,216.56,216.49,9.4700986]
[1734547101702,1.4554,216.55,216.49,9.4700986]
[1734547102109,2.3092,216.54,216.49,9.4700986]
[1734547102609,3.7644,216.55,216.5,2.3095]
[1734547103507,1.4554,216.55,216.48,2.2]
[1734547103805,1.4554,216.55,216.49,2.3096]
[1734547103806,2.3092,216.53,216.49,2.3096]
[1734547105411,2.3092,216.53,216.48,2.2]
[1734547105612,7.1604986,216.5,216.42,12.80481777]
[1734547105807,7.1604986,216.48,216.41,2.2]
[1734547106006,7.1604986,216.48,216.4,9.3604986]
[1734547106313,9.4702986,216.48,216.43,2.3103]
[1734547107316,2.3099,216.47,216.4,9.3604986]
[1734547107515,2.3099,216.47,216.42,2.3104]
[1734547107919,2.3099,216.47,216.4,9.3604986]
[1734547108213,2.3099,216.47,216.43,2.3103]
[1734547108619,7.1604986,216.48,216.4,9.3604986]
[1734547108807,1.5834,216.51,216.38,7.1604986]
[1734547108808,2.3101,216.45,216.38,7.1604986]
[1734547109009,7.1604986,216.44,216.36,9.3604986]
[1734547109213,7.1604986,216.44,216.36,7.1604986]
[1734547110017,7.1604986,216.44,216.38,2.3108]
[1734547110018,2.3103,216.43,216.38,2.3108]
[1734547113513,9.4707986,216.43,216.38,2.3108]
[1734547114119,2.3103,216.43,216.38,2.3108]
[1734547114821,2.3103,216.43,216.38,9.4712986]
[1734547115521,2.3103,216.43,216.38,2.3108]
[1734547116324,2.3104,216.42,216.36,11.6714986]
[1734547116524,2.3104,216.42,216.36,9.3604986]
[1734547116818,7.1604986,216.44,216.36,9.3604986]
[1734547117024,2.3103,216.43,216.37,2.3108]
[1734547119622,2.3103,216.43,216.38,2.3108]
[1734547121320,2.3103,216.43,216.37,2.3109]
[1734547121321,2.3105,216.41,216.37,2.3109]
[1734547121526,7.1604986,216.43,216.37,2.3109]
[1734547122226,5.51017011,216.45,216.37,9.4713986]
[1734547122227,12.67066871,216.45,216.37,9.4713986]
[1734547122422,2.3104,216.42,216.37,9.4713986]
[1734547123928,5.51017011,216.45,216.39,7.1604986]
[1734547124318,5.51017011,216.45,216.36,2.2]
[1734547124319,5.51017011,216.45,216.37,7.1604986]
[1734547124927,5.51017011,216.45,216.39,7.1604986]
[1734547125130,2.3103,216.44,216.39,9.4710986]
[1734547126227,3.8395,216.46,216.41,2.3105]
[1734547126432,3.8395,216.46,216.39,7.1604986]
[1734547127131,3.8395,216.46,216.41,2.3104]
[1734547128330,3.8395,216.46,216.42,2.3104]
[1734547128533,1.5294,216.46,216.41,7.1604986]
[1734547128734,1.5294,216.46,216.41,9.3604986]
[1734547129826,1.5294,216.46,216.42,2.3103]
[1734547130030,1.5294,216.46,216.41,9.3604986]
[1734547131329,1.5294,216.46,216.43,7.1604986]
[1734547131839,3.8394,216.46,216.41,2.3104]
[1734547132039,1.5294,216.46,216.39,9.3604986]
[1734547132338,1.5294,216.46,216.37,2.2]
[1734547132537,2.3104,216.43,216.38,2.3107]
[1734547132739,1.5294,216.46,216.39,7.1604986]
[1734547133340,3.8395,216.46,216.41,2.3105]
[1734547135533,3.8395,216.46,216.39,7.1604986]
[1734547135731,1.5294,216.46,216.41,7.1604986]
[1734547135932,1.5294,216.46,216.43,7.1604986]
[1734547136441,1.5294,216.46,216.45,2.3101]
[1734547136635,3.8794,216.5,216.43,7.1604986]
[1734547137339,3.8794,216.5,216.47,2.3098]
[1734547137636,1.5698,216.5,216.47,2.3098]
[1734547138239,3.8793,216.5,216.47,2.3098]
[1734547139140,1.5698,216.5,216.43,7.1604986]
[1734547139336,7.1604986,216.49,216.42,2.2]
[1734547140641,1.5698,216.5,216.42,9.3604986]
[1734547140842,8.7302986,216.5,216.42,9.3604986]
[1734547141435,7.1604986,216.46,216.4,2.2]
[1734547141642,7.1604986,216.46,216.38,9.3604986]
[1734547141843,2.3101,216.45,216.4,2.3105]
[1734547142742,2.3101,216.45,216.4,9.4709986]
[1734547144841,2.3101,216.45,216.4,7.1604986]
[1734547145043,1.5086,216.47,216.42,2.3103]
[1734547145746,7.1604986,216.44,216.37,5.41178645]
[1734547145944,7.1604986,216.42,216.34,7.1604986]
[1734547146145,7.1604986,216.44,216.34,7.1604986]
[1734547146346,2.3105,216.42,216.36,7.1604986]
[1734547146946,7.1604986,216.44,216.38,2.3108]
[1734547146947,2.3103,216.43,216.38,2.3108]
[1734547147150,7.1604986,216.46,216.38,7.1604986]
[1734547147450,7.1604986,216.46,216.38,9.3604986]
[1734547147747,2.3102,216.44,216.39,2.3106]
[1734547147944,2.3102,216.44,216.4,7.1604986]
[1734547148150,2.3102,216.44,216.4,9.4710986]
[1734547149050,2.3102,216.44,216.4,2.3106]
[1734547149350,2.3102,216.44,216.41,2.3105]
[1734547149547,2.3101,216.45,216.38,9.3604986]
[1734547149747,2.3101,216.45,216.4,7.1604986]
[1734547150442,2.3101,216.45,216.42,2.3103]
[1734547150648,7.1604986,216.45,216.36,7.1604986]
[1734547150947,7.1604986,216.43,216.37,2.3108]
[1734547151345,2.3105,216.42,216.37,2.3108]
[1734547151650,7.1604986,216.43,216.37,2.3108]
[1734547152052,2.3107,216.4,216.36,2.311]
[1734547152950,7.1604986,216.39,216.2,4.6254]
[1734547153145,7.1604986,216.37,216.29,7.1604986]
[1734547153346,2.3113,216.34,216.29,11.6721986]
[1734547153753,2.3113,216.34,216.29,9.3604986]
[1734547153948,7.1604986,216.35,216.19,1.5996]
[1734547154251,2.3115,216.32,216.27,9.4724986]
[1734547154452,2.3115,216.32,216.27,2.312]
[1734547155151,2.3115,216.32,216.28,7.1604986]
[1734547155451,7.1604986,216.35,216.28,9.4723986]
[1734547156148,11.22761538,216.38,216.3,7.1604986]
[1734547156446,10.9148986,216.39,216.32,7.1604986]
[1734547156849,10.9148986,216.39,216.32,9.4718986]
[1734547157446,2.311,216.37,216.32,9.4718986]
[1734547157850,2.311,216.37,216.32,2.3114]
[1734547158951,2.311,216.37,216.31,7.1604986]
[1734547159253,2.311,216.37,216.33,2.3113]
[1734547160056,1.5544,216.39,216.36,2.311]
[1734547160264,205.0036669,216.54,216.37,7.1604986]
[1734547160265,191.1236669,216.54,216.37,7.1604986]
[1734547160460,7.1604986,216.49,216.41,7.1604986]
[1734547160758,2.31,216.46,216.42,2.3103]
[1734547160955,2.31,216.46,216.4,2.2]
[1734547161157,2.3102,216.44,216.4,4.5105]
[1734547162354,7.1604986,216.45,216.4,4.5105]
[1734547162556,2.3101,216.45,216.4,4.5105]
[1734547162758,7.1604986,216.47,216.41,2.3105]
[1734547164561,2.3101,216.45,216.41,2.3105]
[1734547167666,7.1604986,216.43,216.4,2.2]
[1734547167868,7.1604986,216.43,216.36,2.2]
[1734547168068,7.1604986,216.43,216.35,7.1604986]
[1734547168270,9.3604986,216.45,216.37,7.1604986]
[1734547169873,2.3104,216.43,216.39,2.3106]
[1734547170268,2.3104,216.43,216.39,7.1604986]
[1734547170670,2.3104,216.43,216.39,9.4711986]
[1734547171373,9.3604986,216.48,216.39,9.3604986]
[1734547171672,20.58350751,216.48,216.39,9.3604986]
[1734547171872,9.3604986,216.48,216.39,9.3604986]
[1734547172467,2.3101,216.46,216.39,9.3604986]
[1734547172775,9.3604986,216.48,216.39,9.3604986]
[1734547172974,2.3101,216.45,216.41,2.3104]
[1734547174670,3.009,216.5,216.41,7.1604986]
[1734547174875,3.009,216.5,216.43,7.1604986]
[1734547175067,3.009,216.5,216.45,7.1604986]
[1734547175272,5.3185,216.5,216.46,2.3099]
[1734547176275,5.3185,216.5,216.44,2.2]
[1734547176276,10.1694986,216.5,216.45,2.3101]
[1734547177078,2.3098,216.48,216.44,4.5102]
[1734547177375,7.1604986,216.48,216.36,5.50274572]
[1734547177671,2.3102,216.44,216.4,2.3106]
[1734547177873,7.1604986,216.46,216.38,2.2]
[1734547178574,2.3104,216.43,216.39,2.3106]
[1734547178869,7.1604986,216.44,216.39,2.3106]
[1734547179177,2.3103,216.43,216.39,2.3106]
[1734547179376,2.3103,216.43,216.4,2.3106]
[1734547180377,2.3103,216.43,216.39,2.3107]
[1734547182377,2.3102,216.45,216.4,2.3106]
[1734547182879,2.3102,216.44,216.4,2.3106]
[1734547184074,11.23410131,216.45,216.37,9.3604986]
[1734547184278,2.3104,216.42,216.39,2.3107]
[1734547184477,2.3104,216.42,216.37,9.3604986]
[1734547185177,2.3104,216.42,216.37,2.3108]
[1734547186377,2.3104,216.42,216.36,9.3604986]
[1734547186579,2.3104,216.42,216.38,2.3108]
[1734547186780,2.3104,216.42,216.38,9.4712986]
[1734547187479,2.3101,216.45,216.41,2.3105]
[1734547187685,11.23974352,216.47,216.4,7.1604986]
[1734547187877,2.2,216.49,216.41,2.2]
[1734547188082,2.31,216.46,216.42,2.3104]
[1734547189685,2.3099,216.47,216.42,2.3104]
[1734547189880,2.3099,216.47,216.43,2.3103]
[1734547190778,3.009,216.5,216.42,7.1604986]
[1734547190982,3.009,216.5,216.44,7.1604986]
[1734547191582,2.3097,216.49,216.46,2.31]
[1734547191780,3.009,216.5,216.46,2.31]
[1734547191983,3.009,216.5,216.44,7.1604986]
[1734547192286,1.4504,216.5,216.48,2.3097]
[1734547192487,1.4504,216.5,216.46,7.1604986]
[1734547192688,20.91354532,216.54,216.5,2.3095]
[1734547192882,12.2863986,216.56,216.48,7.1604986]
[1734547193085,11.2493942,216.54,216.48,7.1604986]
[1734547193283,2.309,216.55,216.51,2.3093]
[1734547193685,13.55842007,216.55,216.51,2.3093]
[1734547193887,11.24942007,216.55,216.53,2.3092]
[1734547194188,191.1236669,216.58,216.52,7.1604986]
[1734547194383,191.1236669,216.58,216.54,2.309]
[1734547194689,3.8018,216.6,216.52,9.3604986]
[1734547195078,9.4688986,216.61,216.55,2.3089]
[1734547195479,191.1236669,216.62,216.54,7.1604986]
[1734547195684,10.9307986,216.63,216.54,7.1604986]
[1734547196091,2.3083,216.62,216.56,7.1604986]
[1734547196290,7.1604986,216.61,216.52,2.2]
[1734547196485,3.7703,216.63,216.52,2.2]
[1734547196486,7.1604986,216.59,216.52,2.2]
[1734547196686,2.3088,216.58,216.53,2.3092]
[1734547197690,9.4690986,216.59,216.53,2.3092]
[1734547199090,2.3087,216.58,216.53,2.3092]
[1734547200493,2.3086,216.59,216.54,2.3091]
[1734547201291,13.52045628,216.59,216.54,2.3091]
[1734547201489,2.3086,216.59,216.54,2.3091]
[1734547201889,13.52044075,216.59,216.54,2.3091]
[1734547202289,2.3085,216.6,216.54,2.3091]
[1734547202487,13.51771338,216.6,216.55,2.309]
[1734547202689,18.36971198,216.59,216.52,2.2]
[1734547202886,9.4690986,216.59,216.52,9.3604986]
[1734547203191,9.4690986,216.59,216.54,2.309]
[1734547203692,2.3087,216.58,216.53,2.3092]
[1734547204089,13.51380744,216.58,216.53,2.3092]
[1734547204295,7.1604986,216.59,216.5,9.3604986]
[1734547204296,2.309,216.55,216.5,9.3604986]
[1734547204798,2.3089,216.56,216.52,7.1604986]
[1734547204993,7.1604986,216.59,216.52,7.1604986]
[1734547205297,25.90742667,216.62,216.52,7.1604986]
[1734547205597,7.1604986,216.6,216.52,7.1604986]
[1734547205800,2.3088,216.57,216.53,2.3091]
[1734547207095,2.3091,216.54,216.49,2.2]
[1734547207600,2.3091,216.54,216.5,2.3095]
[1734547209401,2.3091,216.54,216.48,9.3604986]
[1734547209603,2.3091,216.54,216.49,2.3096]
[1734547211005,2.3094,216.52,216.46,2.3099]